bitfinex/quotes_SOLUSD_20241127
["timestamp","ask_amount","ask_price","bid_price","bid_amount"]
[1732737417348,20.0,239.26,239.19,8.03170293]
[1732737419035,20.0,239.26,239.21,8.03170293]
[1732737419436,8.03170293,239.3,239.21,8.03170293]
[1732737419753,20.0,239.27,239.21,8.03170293]
[1732737420465,8.03170293,239.28,239.18,6.1341]
[1732737420466,20.0,239.25,239.19,8.03170293]
[1732737420832,20.0,239.23,239.18,6.1341]
[1732737421148,8.03170293,239.24,239.18,6.1341]
[1732737421149,20.0,239.21,239.18,6.1341]
[1732737421346,20.0,239.25,239.18,6.1341]
[1732737421347,8.03170293,239.22,239.18,6.1341]
[1732737421733,8.03170293,239.22,239.13,8.03170293]
[1732737422557,20.0,239.26,239.15,8.03170293]
[1732737422733,20.0,239.21,239.15,8.03170293]
[1732737424242,20.0,239.26,239.15,8.03170293]
[1732737424447,20.0,239.21,239.15,8.03170293]
[1732737425235,21.52589673,239.26,239.15,8.03170293]
[1732737425435,8.03170293,239.23,239.15,8.03170293]
[1732737431641,20.0,239.18,239.12,21.5609]
[1732737431839,8.03170293,239.19,239.12,21.5609]
[1732737434065,8.03170293,239.19,239.12,29.59260293]
[1732737434272,20.0,239.18,239.12,21.5609]
[1732737434570,20.0,239.18,239.13,8.03170293]
[1732737435469,32.12681172,239.28,239.13,8.03170293]
[1732737435643,8.03170293,239.23,239.15,8.03170293]
[1732737436266,20.0,239.2,239.15,8.03170293]
[1732737439963,8.03170293,239.23,239.15,8.03170293]
[1732737441577,20.0,239.2,239.12,21.5609]
[1732737441761,20.0,239.2,239.14,8.03170293]
[1732737446870,20.0,239.24,239.14,8.03170293]
[1732737447175,28.03170293,239.24,239.14,8.03170293]
[1732737448775,8.03170293,239.16,239.1,0.3193206]
[1732737450572,15.2105,239.22,239.1,0.3193206]
[1732737450573,23.776884,239.21,239.1,0.3193206]
[1732737450757,8.03170293,239.14,239.1,0.3193206]
[1732737450956,8.03170293,239.12,239.1,0.3193206]
[1732737452276,23.776884,239.11,239.1,0.3193206]
[1732737453677,31.80858693,239.11,239.1,0.3193206]
[1732737455157,8.03170293,239.11,239.1,0.3193206]
[1732737457074,39.769684,239.19,239.1,0.3193206]
[1732737457272,8.03170293,239.12,239.1,0.3193206]
[1732737466994,9.55098673,239.12,239.1,0.3193206]
[1732737467291,8.03170293,239.11,239.1,0.3193206]
[1732737467878,1.5192838,239.12,239.1,0.3193206]
[1732737468081,8.03170293,239.11,239.1,0.3193206]
[1732737471668,8.03170293,239.11,238.97,15.0274]
[1732737471669,20.0,239.07,238.97,15.0274]
[1732737471875,8.03170293,239.0,238.96,6.3962]
[1732737473172,8.03170293,239.0,238.91,22.3456]
[1732737473389,8.03170293,239.0,238.92,8.03170293]
[1732737473586,8.03170293,239.02,238.94,8.03170293]
[1732737474183,20.0,239.03,238.94,8.03170293]
[1732737474504,28.03170293,239.03,238.94,8.03170293]
[1732737474796,8.03170293,239.02,238.94,8.03170293]
[1732737478484,8.03170293,239.02,238.91,22.3456]
[1732737478796,8.03170293,239.0,238.91,30.37730293]
[1732737480402,20.0,238.97,238.91,30.37730293]
[1732737480693,28.03170293,238.95,238.86,0.5007206]
[1732737481000,20.0,239.02,238.89,8.03170293]
[1732737481301,8.03170293,238.98,238.89,8.03170293]
[1732737481795,20.0,239.02,238.89,8.03170293]
[1732737481796,8.03170293,238.97,238.89,8.03170293]
[1732737482815,8.03170293,238.97,238.86,0.5007206]
[1732737483095,8.03170293,238.97,238.88,8.03170293]
[1732737483596,8.03170293,238.93,238.86,0.5007206]
[1732737485399,20.0,238.9,238.86,0.5007206]
[1732737486095,20.0,238.92,238.86,0.5007206]
[1732737486300,8.03170293,238.9,238.86,0.5007206]
[1732737486481,8.03170293,238.88,238.86,0.5007206]
[1732737486910,8.03170293,238.9,238.86,0.5007206]
[1732737490894,8.03170293,238.88,238.86,0.5007206]
[1732737491902,20.0,238.92,238.86,0.5007206]
[1732737492107,8.03170293,238.9,238.86,0.5007206]
[1732737493498,8.03170293,238.88,238.86,0.5007206]
[1732737493892,1.489828,239.0,238.87,24.32370293]
[1732737494102,8.03170293,238.94,238.87,24.32370293]
[1732737494293,15.0071,239.01,238.88,0.8348906]
[1732737494610,8.03170293,238.95,238.88,0.8348906]
[1732737495195,8.03170293,238.95,238.87,24.32370293]
[1732737495196,8.03170293,238.93,238.87,16.292]
[1732737495411,8.03170293,238.92,238.87,16.292]
[1732737495588,8.03170293,238.93,238.87,16.292]
[1732737497002,15.0071,239.01,238.87,16.292]
[1732737497202,8.03170293,238.93,238.87,16.292]
[1732737498692,20.0,238.98,238.87,16.292]
[1732737498992,8.03170293,238.94,238.87,16.292]
[1732737502310,15.0071,239.01,238.87,25.15860997]
[1732737502609,8.03170293,238.95,238.88,23.776884]
[1732737503484,8.03170293,238.93,238.87,116.292]
[1732737505804,8.03170293,238.94,238.87,16.292]
[1732737509495,8.03170293,238.92,238.87,16.292]
[1732737510115,20.0,239.01,238.87,16.292]
[1732737510306,8.03170293,238.93,238.87,16.292]
[1732737513009,8.03170293,238.91,238.87,16.292]
[1732737517123,8.03170293,238.93,238.87,16.292]
[1732737518026,8.03170293,238.96,238.87,24.32370293]
[1732737518203,8.03170293,238.94,238.87,16.292]
[1732737518405,10.57584641,239.04,238.89,8.03170293]
[1732737518630,8.03170293,238.98,238.9,23.776884]
[1732737518828,8.03170293,238.98,238.9,123.776884]
[1732737519022,8.03170293,239.0,238.91,14.09710293]
[1732737520931,8.03170293,239.0,238.93,8.03170293]
[1732737522826,20.0,239.01,238.93,8.03170293]
[1732737523030,8.03170293,239.02,238.93,8.03170293]
[1732737525018,8.03170293,239.0,238.91,6.0654]
[1732737525222,8.03170293,238.98,238.91,14.09710293]
[1732737525609,8.03170293,238.98,238.87,16.292]
[1732737525814,8.03170293,238.98,238.89,8.03170293]
[1732737527714,17.91732848,239.06,238.97,8.03170293]
[1732737528034,16.4207,239.06,238.97,8.03170293]
[1732737528613,6.2544,239.08,238.99,8.03170293]
[1732737528917,6.2544,239.08,239.03,8.03170293]
[1732737529312,6.2544,239.08,239.05,8.03170293]
[1732737529729,8.03170293,239.13,239.05,8.03170293]
[1732737530117,15.9318,239.18,239.07,8.03170293]
[1732737530320,23.96350293,239.18,239.11,8.03170293]
[1732737530629,23.96350293,239.18,239.0,116.1314]
[1732737530630,8.03170293,239.16,239.09,8.03170293]
[1732737531626,20.0,239.13,239.04,6.2581]
[1732737531824,20.0,239.13,239.05,8.03170293]
[1732737532217,20.0,239.13,239.07,8.03170293]
[1732737532421,28.03170293,239.15,239.07,8.03170293]
[1732737535515,20.0,239.14,239.09,8.03170293]
[1732737537214,20.0,239.15,239.11,8.03170293]
[1732737538240,20.0,239.16,239.11,8.03170293]
[1732737539040,1.49586589,239.2,239.13,8.03170293]
[1732737539335,28.03170293,239.22,239.13,8.03170293]
[1732737539526,20.0,239.17,239.12,8.03170293]
[1732737540731,20.0,239.17,239.1,8.03170293]
[1732737541034,20.0,239.15,239.05,116.2717]
[1732737541221,20.0,239.13,239.05,100.0]
[1732737541417,20.0,239.13,239.04,6.2581]
[1732737541418,8.03170293,239.12,239.04,6.2581]
[1732737542524,20.0,239.09,239.03,8.03170293]
[1732737546124,20.0,239.13,239.05,8.03170293]
[1732737546335,20.0,239.11,239.05,8.03170293]
[1732737546940,20.0,239.11,239.03,8.03170293]
[1732737547130,20.0,239.09,239.03,8.03170293]
[1732737547820,20.0,239.09,238.99,15.112]
[1732737547821,20.0,239.09,239.05,8.03170293]
[1732737548041,20.0,239.11,239.05,8.03170293]
[1732737548341,20.0,239.1,239.05,8.03170293]
[1732737549543,20.0,239.12,239.05,8.03170293]
[1732737549756,22.3496,239.16,239.07,8.03170293]
[1732737549757,20.0,239.11,239.07,8.03170293]
[1732737550042,22.3496,239.16,239.09,8.03170293]
[1732737551418,20.0,239.13,239.09,8.03170293]
[1732737552221,20.0,239.13,238.99,15.112]
[1732737552428,20.0,239.13,239.05,8.03170293]
[1732737552622,20.0,239.15,239.11,8.03170293]
[1732737554237,20.0,239.17,239.11,8.03170293]
[1732737555843,9.550004,239.2,239.04,32.12681172]
[1732737555844,20.0,239.19,239.15,8.03170293]
[1732737558049,16.1844,239.22,239.17,8.03170293]
[1732737558245,6.049,239.25,239.17,8.03170293]
[1732737558635,23.776884,239.24,239.17,8.03170293]
[1732737559329,20.0,239.21,239.17,8.03170293]
[1732737562939,6.049,239.25,239.2,8.03170293]
[1732737563139,6.049,239.25,239.24,8.03170293]
[1732737563534,6.049,239.25,239.2,23.776884]
[1732737563734,6.049,239.25,239.24,8.03170293]
[1732737565554,20.0,239.35,239.24,8.03170293]
[1732737565733,20.0,239.35,239.29,8.03170293]
[1732737568143,20.0,239.37,239.33,8.03170293]
[1732737570663,20.0,239.35,239.31,8.03170293]
[1732737571257,20.0,239.35,239.3,8.03170293]
[1732737571652,20.0,239.36,239.3,8.03170293]
[1732737572560,20.0,239.36,239.22,123.776884]
[1732737572754,20.0,239.36,239.29,8.03170293]
[1732737574843,28.03170293,239.37,239.29,8.03170293]
[1732737575033,28.03170293,239.37,239.2,106.5382]
[1732737575034,23.776884,239.36,239.2,106.5382]
[1732737575238,20.0,239.3,239.24,8.03170293]
[1732737577343,20.0,239.31,239.24,8.03170293]
[1732737577544,20.0,239.3,239.24,8.03170293]
[1732737581656,20.0,239.31,239.26,8.03170293]
[1732737581856,21.8041,239.4,239.3,8.03170293]
[1732737582164,31.80858693,239.39,239.3,8.03170293]
[1732737582948,31.80858693,239.39,239.31,8.03170293]
[1732737583143,20.0,239.36,239.31,8.03170293]
[1732737584450,20.0,239.36,239.22,23.776884]
[1732737584769,20.0,239.36,239.31,8.03170293]
[1732737585471,20.0,239.37,239.31,8.03170293]
[1732737585648,20.0,239.36,239.31,8.03170293]
[1732737585844,20.0,239.36,239.23,0.83364148]
[1732737586069,20.0,239.34,239.27,8.03170293]
[1732737588158,20.0,239.33,239.29,8.03170293]
[1732737589155,20.0,239.35,239.29,8.03170293]
[1732737594761,20.0,239.35,239.28,8.03170293]
[1732737594968,8.03170293,239.36,239.28,8.03170293]
[1732737595272,20.0,239.33,239.28,8.03170293]
[1732737596860,20.0,239.37,239.28,8.03170293]
[1732737597059,20.0,239.33,239.28,8.03170293]
[1732737602176,28.03170293,239.37,239.28,8.03170293]
[1732737602480,20.0,239.37,239.3,8.03170293]
[1732737602659,20.0,239.36,239.3,8.03170293]
[1732737603171,20.0,239.37,239.3,8.03170293]
[1732737603381,20.0,239.36,239.3,8.03170293]
[1732737604063,23.776884,239.45,239.32,8.03170293]
[1732737604372,8.03170293,239.41,239.34,8.03170293]
[1732737604771,8.03170293,239.43,239.34,8.03170293]
[1732737605882,8.03170293,239.41,239.28,16.5396]
[1732737606071,16.76920847,239.46,239.28,16.5396]
[1732737606072,20.0,239.36,239.28,24.57130293]
[1732737606376,8.03170293,239.35,239.27,8.03170293]
[1732737608083,20.0,239.32,239.23,16.5396]
[1732737608379,20.0,239.32,239.24,8.03170293]
[1732737608788,28.03170293,239.31,239.3,6.2917]
[1732737609583,28.03170293,239.31,239.22,8.03170293]
[1732737609784,20.0,239.3,239.29,2.0]
[1732737610965,28.03170293,239.3,239.29,2.0]
[1732737611178,51.80858693,239.3,239.29,2.0]
[1732737611981,43.776884,239.3,239.29,2.0]
[1732737612182,51.80858693,239.3,239.29,2.0]
[1732737613466,51.80858693,239.3,239.29,0.17875611]
[1732737613658,43.776884,239.3,239.29,0.17875611]
[1732737613983,51.80858693,239.3,239.29,0.17875611]
[1732737614680,20.0,239.3,239.29,0.17875611]
[1732737614878,8.03170293,239.33,239.29,0.17875611]
[1732737615982,8.03170293,239.31,239.29,0.17875611]
[1732737617188,23.776884,239.3,239.29,0.17875611]
[1732737621691,8.03170293,239.32,239.29,0.17875611]
[1732737621887,6.6564,239.38,239.3,8.03170293]
[1732737622093,8.03170293,239.39,239.3,8.03170293]
[1732737622979,15.5808,239.44,239.32,8.03170293]
[1732737623180,8.03170293,239.42,239.32,8.03170293]
[1732737623390,8.03170293,239.42,239.34,8.03170293]
[1732737624389,20.0,239.38,239.34,8.03170293]
[1732737625988,20.0,239.38,239.32,8.03170293]
[1732737626198,20.0,239.38,239.32,12.56148544]
[1732737626567,20.0,239.37,239.32,12.56148544]
[1732737626879,20.0,239.33,239.29,0.17875611]
[1732737628375,20.0,239.41,239.29,0.17875611]
[1732737628576,12.56148544,239.4,239.32,12.56148544]
[1732737631083,20.0,239.37,239.32,12.56148544]
[1732737632479,20.0,239.41,239.32,12.56148544]
[1732737632683,20.0,239.37,239.32,12.56148544]
[1732737634604,20.0,239.37,239.3,12.56148544]
[1732737634798,20.0,239.35,239.3,12.56148544]
[1732737635288,20.0,239.35,239.29,0.17875611]
[1732737635289,12.56148544,239.38,239.29,0.17875611]
[1732737635486,20.0,239.35,239.29,0.17875611]
[1732737635694,20.0,239.33,239.29,0.17875611]
[1732737635897,20.0,239.31,239.29,0.17875611]
[1732737636697,32.56148544,239.3,239.29,0.17875611]
[1732737638085,20.0,239.3,239.29,0.17875611]
[1732737638418,12.56148544,239.34,239.29,0.17875611]
[1732737638700,20.0,239.31,239.29,0.17875611]
[1732737641109,20.0,239.37,239.29,0.17875611]
[1732737641311,20.0,239.33,239.29,0.17875611]
[1732737641521,20.0,239.31,239.29,0.17875611]
[1732737643488,56.33836944,239.3,239.29,0.17875611]
[1732737644898,20.0,239.23,239.19,6.3418]
[1732737647107,20.0,239.23,239.16,12.56148544]
[1732737648694,20.0,239.23,239.18,12.56148544]
[1732737649089,12.56148544,239.3,239.22,12.56148544]
[1732737650414,12.56148544,239.3,239.2,12.56148544]
[1732737650415,20.0,239.27,239.2,12.56148544]
[1732737650595,20.0,239.25,239.2,12.56148544]
[1732737650797,20.0,239.3,239.15,4.1814]
[1732737651012,12.56148544,239.31,239.21,12.56148544]
[1732737651013,20.0,239.28,239.21,12.56148544]
[1732737651593,20.0,239.28,239.15,5.01533259]
[1732737651812,20.0,239.28,239.23,12.56148544]
[1732737652021,28.95198544,239.35,239.27,12.56148544]
[1732737652313,12.56148544,239.33,239.25,12.56148544]
[1732737653212,20.0,239.3,239.25,12.56148544]
[1732737653395,12.56148544,239.33,239.25,12.56148544]
[1732737653716,20.0,239.3,239.25,12.56148544]
[1732737656297,20.0,239.3,239.24,8.04512006]
[1732737656497,20.0,239.29,239.24,8.04512006]
[1732737657408,8.04512006,239.32,239.24,8.04512006]
[1732737657611,20.0,239.32,239.24,8.04512006]
[1732737657797,28.04512006,239.32,239.24,8.04512006]
[1732737658597,20.0,239.32,239.24,8.04512006]
[1732737659018,20.0,239.3,239.24,8.04512006]
[1732737660516,16.3905,239.35,239.26,8.04512006]
[1732737660700,8.04512006,239.37,239.29,8.04512006]
[1732737661406,8.04512006,239.35,239.27,8.04512006]
[1732737661926,8.04512006,239.33,239.24,8.04512006]
[1732737662224,20.0,239.3,239.24,8.04512006]
[1732737662525,8.04512006,239.35,239.26,8.04512006]
[1732737662827,8.04512006,239.35,239.22,6.2792]
[1732737662828,8.04512006,239.37,239.3,8.04512006]
[1732737663320,14.25142006,239.39,239.3,8.04512006]
[1732737663520,14.25142006,239.39,239.32,8.04512006]
[1732737663731,6.2063,239.39,239.34,8.04512006]
[1732737664230,6.2063,239.39,239.38,8.04512006]
[1732737665727,6.2063,239.39,239.38,23.60802006]
[1732737666331,6.2063,239.39,239.31,39.339784]
[1732737666511,6.2063,239.39,239.37,12.55185396]
[1732737667598,20.0,239.42,239.37,12.55185396]
[1732737667807,12.55185396,239.49,239.41,12.55185396]
[1732737669124,20.0,239.46,239.41,12.55185396]
[1732737669325,12.55185396,239.5,239.42,12.55185396]
[1732737669624,32.55185396,239.49,239.42,12.55185396]
[1732737670613,32.55185396,239.49,239.35,106.3413]
[1732737670614,12.55185396,239.48,239.41,12.55185396]
[1732737670810,12.55185396,239.47,239.4,12.55185396]
[1732737671213,12.55185396,239.48,239.41,12.55185396]
[1732737672529,32.55185396,239.49,239.41,12.55185396]
[1732737673231,20.0,239.49,239.43,12.55185396]
[1732737673434,28.55525396,239.52,239.45,12.55185396]
[1732737673635,28.55525396,239.52,239.44,12.55185396]
[1732737673826,12.55185396,239.51,239.43,12.55185396]
[1732737675025,12.55185396,239.53,239.45,12.55185396]
[1732737675375,8.30065414,239.54,239.48,12.55185396]
[1732737676038,8.30065414,239.54,239.5,12.55185396]
[1732737676537,20.0,239.56,239.52,12.55185396]
[1732737676837,12.55185396,239.61,239.54,12.55185396]
[1732737677620,12.55185396,239.61,239.52,12.55185396]
[1732737678114,12.55185396,239.59,239.51,12.55185396]
[1732737679123,12.55185396,239.61,239.53,12.55185396]
[1732737680313,12.55185396,239.61,239.51,12.55185396]
[1732737680522,12.55185396,239.61,239.53,12.55185396]
[1732737682640,12.55185396,239.61,239.47,23.776884]
[1732737682834,12.55185396,239.61,239.46,0.83276171]
[1732737682835,12.55185396,239.57,239.49,12.55185396]
[1732737683031,12.55185396,239.53,239.45,18.85995396]
[1732737683232,12.55185396,239.51,239.45,6.3081]
[1732737683535,12.55185396,239.46,239.45,6.3081]
[1732737683847,12.55185396,239.46,239.33,12.55185396]
[1732737683848,20.0,239.43,239.33,12.55185396]
[1732737684037,12.55185396,239.42,239.33,12.55185396]
[1732737684218,12.55185396,239.42,239.35,12.55185396]
[1732737684836,12.55185396,239.42,239.33,12.55185396]
[1732737685625,12.55185396,239.42,239.35,12.55185396]
[1732737688143,12.55185396,239.46,239.37,12.55185396]
[1732737688334,12.55185396,239.48,239.39,12.55185396]
[1732737690951,6.5305,239.54,239.35,12.55185396]
[1732737690952,12.55185396,239.44,239.35,12.55185396]
[1732737691327,12.55185396,239.42,239.35,12.55185396]
[1732737691525,12.55185396,239.42,239.33,12.55185396]
[1732737692727,12.55185396,239.4,239.31,15.0614]
[1732737693045,12.55185396,239.4,239.32,36.32873796]
[1732737693759,12.55185396,239.42,239.32,136.32873796]
[1732737694652,12.55185396,239.4,239.32,36.32873796]
[1732737695762,12.55185396,239.42,239.34,12.55185396]
[1732737695931,12.55185396,239.42,239.35,23.776884]
[1732737696460,12.55185396,239.52,239.33,23.776884]
[1732737696461,12.55185396,239.4,239.33,23.776884]
[1732737696629,12.55185396,239.38,239.31,15.0614]
[1732737696835,12.55185396,239.34,239.26,12.55185396]
[1732737697137,12.55185396,239.3,239.22,12.55185396]
[1732737697344,12.55185396,239.28,239.19,15.9163]
[1732737697537,12.55185396,239.28,239.2,12.55185396]
[1732737698663,12.55185396,239.28,239.21,23.776884]
[1732737703054,12.55185396,239.3,239.22,12.55185396]
[1732737703253,12.55185396,239.3,239.21,23.776884]
[1732737703460,12.55185396,239.3,239.22,12.55185396]
[1732737704049,12.55185396,239.32,239.24,12.55185396]
[1732737705749,28.37415396,239.34,239.26,12.55185396]
[1732737706639,12.55185396,239.32,239.24,12.55185396]
[1732737706975,12.55185396,239.3,239.14,121.5547]
[1732737707156,15.8223,239.34,239.2,12.55185396]
[1732737707157,12.55185396,239.28,239.2,12.55185396]
[1732737709863,12.55185396,239.32,239.24,12.55185396]
[1732737710059,28.37415396,239.34,239.26,12.55185396]
[1732737710260,28.37415396,239.34,239.22,0.83373949]
[1732737710444,15.8223,239.34,239.28,12.55185396]
[1732737710646,15.8223,239.34,239.3,12.55185396]
[1732737710843,6.4975,239.39,239.32,12.55185396]
[1732737711156,6.4975,239.39,239.34,12.55185396]
[1732737711339,12.55185396,239.45,239.36,12.55185396]
[1732737711766,12.55185396,239.45,239.36,7.25029636]
[1732737712072,12.55185396,239.45,239.37,12.55185396]
[1732737714761,16.4406,239.46,239.39,12.55185396]
[1732737722066,12.55185396,239.45,239.37,12.55185396]
[1732737722446,12.55185396,239.43,239.35,12.55185396]
[1732737722965,12.55185396,239.41,239.33,12.55185396]
[1732737723569,12.55185396,239.39,239.31,12.55185396]
[1732737724167,16.4406,239.46,239.33,12.55185396]
[1732737724168,12.55185396,239.41,239.33,12.55185396]
[1732737724359,12.55185396,239.43,239.35,12.55185396]
[1732737724762,12.55185396,239.45,239.37,12.55185396]
[1732737725073,16.4406,239.46,239.41,12.55185396]
[1732737725263,16.4406,239.46,239.43,12.55185396]
[1732737725470,6.4503,239.47,239.43,12.55185396]
[1732737726463,29.16465396,239.52,239.43,12.55185396]
[1732737726772,29.16465396,239.52,239.38,105.01043632]
[1732737726773,16.6128,239.52,239.47,12.55185396]
[1732737726970,16.6128,239.52,239.49,12.55185396]
[1732737727172,8.71184962,239.69,239.49,12.55185396]
[1732737727173,12.55185396,239.58,239.49,12.55185396]
[1732737729363,12.55185396,239.58,239.51,12.55185396]
[1732737729565,18.67615396,239.6,239.51,12.55185396]
[1732737730862,12.55185396,239.58,239.49,12.55185396]
[1732737731573,6.1243,239.6,239.45,100.0]
[1732737731574,18.67615396,239.6,239.51,12.55185396]
[1732737731784,6.1243,239.6,239.53,12.55185396]
[1732737731988,12.55185396,239.64,239.57,12.55185396]
[1732737732496,15.5719,239.66,239.59,12.55185396]
[1732737732497,28.12375396,239.66,239.59,12.55185396]
[1732737733370,8.71184962,239.69,239.65,12.55185396]
[1732737733790,22.9893,239.72,239.65,12.55185396]
[1732737734164,22.8009,239.78,239.69,12.55185396]
[1732737734369,12.55185396,239.76,239.67,12.55185396]
[1732737734590,12.55185396,239.72,239.63,12.55185396]
[1732737735487,13.05257456,239.7,239.63,12.55185396]
[1732737737279,0.5007206,239.7,239.63,12.55185396]
[1732737738486,0.5007206,239.7,239.65,12.55185396]
[1732737738688,0.5007206,239.7,239.67,12.55185396]
[1732737738891,0.5007206,239.7,239.69,12.55185396]
[1732737739695,0.5007206,239.7,239.67,12.55185396]
[1732737741675,0.5007206,239.7,239.69,12.55185396]
[1732737744199,0.5007206,239.7,239.69,36.32873796]
[1732737744399,0.5007206,239.7,239.69,12.55185396]
[1732737744790,0.5007206,239.7,239.67,12.55185396]
[1732737744995,0.5007206,239.7,239.69,12.55185396]
[1732737749085,0.5007206,239.7,239.69,36.32873796]
[1732737749286,0.5007206,239.7,239.69,12.55185396]
[1732737750695,0.5007206,239.7,239.69,36.32873796]
[1732737757388,0.5007206,239.7,239.69,41.33271213]
[1732737757594,0.5007206,239.7,239.69,141.33271213]
[1732737757798,0.5007206,239.7,239.69,140.50073796]
[1732737758210,0.5007206,239.7,239.69,452.50073796]
[1732737759295,0.5007206,239.7,239.69,352.50073796]
[1732737760290,6.2278,239.82,239.72,20.0]
[1732737760496,6.2278,239.82,239.81,12.55185396]
[1732737760689,28.75755396,239.9,239.81,12.55185396]
[1732737760690,16.2057,239.9,239.81,36.32873796]
[1732737760990,16.2057,239.9,239.85,12.55185396]
[1732737761698,28.75755396,239.9,239.83,12.55185396]
[1732737762102,12.55185396,239.88,239.79,12.55185396]
[1732737762306,12.55185396,239.88,239.81,12.55185396]
[1732737763012,12.55185396,239.88,239.79,12.55185396]
[1732737763390,12.55185396,239.84,239.77,12.55185396]
[1732737763595,12.55185396,239.84,239.67,20.1281]
[1732737763596,12.55185396,239.82,239.73,12.55185396]
[1732737763902,16.2872,239.79,239.73,12.55185396]
[1732737768011,12.55185396,239.78,239.71,12.55185396]
[1732737768217,12.55185396,239.76,239.69,12.55185396]
[1732737769213,12.55185396,239.78,239.71,12.55185396]
[1732737769795,12.55185396,239.78,239.69,12.55185396]
[1732737776112,12.55185396,239.77,239.69,12.55185396]
[1732737780809,16.2872,239.79,239.76,12.55185396]
[1732737781015,16.2872,239.79,239.77,12.55185396]
[1732737781230,16.2872,239.79,239.75,12.55185396]
[1732737781923,16.2872,239.79,239.73,12.55185396]
[1732737783827,6.1933,239.83,239.77,12.55185396]
[1732737784125,16.07,239.84,239.8,12.55185396]
[1732737784504,16.07,239.84,239.82,12.55185396]
[1732737785127,6.2441,239.88,239.82,12.55185396]
[1732737785320,6.2441,239.88,239.84,12.55185396]
[1732737786626,6.2441,239.88,239.82,12.55185396]
[1732737786928,12.55185396,239.86,239.78,112.55185396]
[1732737787120,6.2441,239.88,239.74,12.55185396]
[1732737787121,12.55185396,239.84,239.74,12.55185396]
[1732737787516,12.55185396,239.84,239.76,12.55185396]
[1732737787730,12.55185396,239.87,239.79,12.55185396]
[1732737788514,12.55185396,239.85,239.77,12.55185396]
[1732737789813,12.55185396,239.87,239.79,12.55185396]
[1732737790022,6.2441,239.88,239.81,12.55185396]
[1732737791439,6.2441,239.88,239.79,12.55185396]
[1732737791625,12.55185396,239.87,239.79,12.55185396]
[1732737792014,12.55185396,239.85,239.77,12.55185396]
[1732737793040,12.55185396,239.87,239.77,12.55185396]
[1732737793236,12.55185396,239.87,239.79,12.55185396]
[1732737793444,6.2441,239.88,239.81,12.55185396]
[1732737793812,6.2441,239.88,239.83,12.55185396]
[1732737794930,16.3107,239.9,239.83,12.55185396]
[1732737795942,16.3107,239.9,239.86,12.55185396]
[1732737796245,16.3107,239.9,239.84,12.55185396]
[1732737797343,6.8459206,239.94,239.88,12.55185396]
[1732737797520,6.8459206,239.94,239.92,12.55185396]
[1732737797717,0.5007206,239.94,239.92,12.55185396]
[1732737799232,0.5007206,239.94,239.9,12.55185396]
[1732737799742,0.5007206,239.94,239.92,12.55185396]
[1732737812255,0.5007206,239.94,239.93,7.99760352]
[1732737813550,0.5007206,239.94,239.93,31.77448752]
[1732737813859,0.5007206,239.94,239.93,23.776884]
[1732737814052,0.5007206,239.94,239.93,31.77448752]
[1732737814245,0.5007206,239.94,239.93,7.99760352]
[1732737814553,0.5007206,239.94,239.93,31.77448752]
[1732737814741,0.5007206,239.94,239.93,7.99760352]
[1732737819443,0.5007206,239.94,239.9,23.776884]
[1732737819636,0.5007206,239.94,239.93,7.99760352]
[1732737825441,0.5007206,239.94,239.9,24.6082031]
[1732737825756,0.5007206,239.94,239.8,16.682654]
[1732737825757,0.5007206,239.94,239.84,116.191]
[1732737825959,0.5007206,239.94,239.9,7.99760352]
[1732737826157,0.5007206,239.94,239.8,16.682654]
[1732737826462,8.49832412,239.94,239.86,7.99760352]
[1732737827464,7.99760352,239.92,239.84,7.99760352]
[1732737827774,7.99760352,239.9,239.82,7.99760352]
[1732737828275,14.25090352,239.9,239.77,100.0]
[1732737828567,7.99760352,239.88,239.72,104.1714]
[1732737828873,7.99760352,239.88,239.8,7.99760352]
[1732737831373,6.2533,239.9,239.82,7.99760352]
[1732737831580,6.2533,239.9,239.86,7.99760352]
[1732737837075,15.1701,239.91,239.86,7.99760352]
[1732737838867,6.6459206,239.94,239.9,7.99760352]
[1732737840282,0.5007206,239.94,239.92,7.99760352]
[1732737843783,0.5007206,239.94,239.9,7.99760352]
[1732737844386,0.5007206,239.94,239.89,7.99760352]
[1732737846885,8.49832412,239.94,239.82,23.776884]
[1732737847086,7.99760352,239.92,239.79,100.0]
[1732737847283,7.99760352,239.9,239.82,7.99760352]
[1732737847966,7.19760352,239.9,239.82,7.99760352]
[1732737848564,7.19760352,239.9,239.84,7.99760352]